fUSD/lending_fUSD_20250916
["ID","MTS","AMOUNT","RATE_DAILY","PERIOD"]
[385828608,1758057109409,-9999.99,0.00034649,2]
[385828609,1758057109419,-6055.0,0.00034649,2]
[385828610,1758057109430,-5770.23,0.00034649,2]
[385828611,1758057109440,-499.99,0.00034649,2]
[385828612,1758057109451,-3118.62,0.00034649,2]
[385828613,1758057109462,-999.99,0.00034649,2]
[385828614,1758057109474,-4074.1,0.00034649,2]
[385828615,1758057109484,-150.99,0.00034649,2]
[385828616,1758057109494,-9096.2,0.00034649,15]
[385828617,1758057109504,-193.0,0.00034652,13]
[385828618,1758057109514,-500.0,0.00034659,7]
[385828619,1758057109524,-154.91,0.00034662,60]
[385828620,1758057109535,-1100.0,0.00034668,7]
[385828621,1758057109546,-700.0,0.00034673,7]
[385828622,1758057109555,-1100.0,0.00034704,7]
[385828623,1758057109565,-1100.0,0.0003471,7]
[385828624,1758057109575,-1000.0,0.0003471,7]
[385828625,1758057109585,-2000.0,0.00034748,15]
[385828626,1758057109594,-600.0,0.00034754,7]
[385828627,1758057109604,-154.91,0.00034762,60]
[385828628,1758057109614,-700.0,0.0003477,7]
[385828629,1758057109624,-500.0,0.0003478,2]
[385828630,1758057109635,-500.0,0.0003478,2]
[385828631,1758057109645,-644.0,0.0003478,2]
[385828632,1758057109655,-400.0,0.0003479,120]
[385828633,1758057109664,-405.53,0.00034793,6]
[385828634,1758057109674,-400.0,0.00034793,6]
[385828635,1758057109685,-1028.77,0.00034793,6]
[385828636,1758057109696,-595.63,0.00034793,6]
[385828637,1758057109706,-1409.64,0.00034793,6]
[385828638,1758057109715,-400.0,0.00034793,6]
[385828639,1758057109725,-600.72,0.00034793,6]
[385828640,1758057109736,-400.0,0.00034793,6]
[385828641,1758057109746,-400.0,0.00034793,6]
[385828642,1758057109755,-1436.86,0.00034793,6]
[385828643,1758057109766,-506.37,0.00034793,6]
[385828644,1758057109775,-7636.7,0.00034793,6]
[385828645,1758057109786,-1729.73,0.00034793,6]
[385828646,1758057109796,-524.19,0.00034793,6]
[385828647,1758057109806,-844.72,0.00034793,6]
[385828648,1758057109816,-505.69,0.00034793,6]
[385828649,1758057110052,-400.0,0.00034793,6]
[385828650,1758057110063,-546.33,0.00034793,6]
[385828651,1758057110072,-400.0,0.00034793,6]
[385828652,1758057110082,-1051.06,0.00034793,6]
[385828653,1758057110092,-268.77066443,0.00034793,6]
[385828654,1758057110101,-1470.36,0.00034793,6]
[385828655,1758057110111,-472.24,0.00034794,6]
[385828656,1758057110121,-421.35977928,0.00034794,6]
[385828657,1758057110130,-400.0,0.00034794,120]
[385828658,1758057110140,-595.04,0.00034794,6]
[385828659,1758057110150,-817.46,0.00034794,6]
[385828660,1758057110159,-400.0,0.00034794,6]
[385828661,1758057110169,-426.72,0.00034794,6]
[385828662,1758057110179,-400.0,0.00034794,6]
[385828663,1758057110189,-400.0,0.00034794,6]
[385828664,1758057110198,-400.0,0.00034794,6]
[385828665,1758057110207,-400.0,0.00034794,6]
[385828666,1758057110217,-472.14342853,0.00034794,6]
[385828667,1758057110227,-466.82,0.00034794,6]
[385828668,1758057110237,-436.46,0.00034794,6]
[385828669,1758057110246,-391.28114417,0.00034794,6]
[385828670,1758057110256,-444.47,0.00034794,6]
[385828671,1758057110266,-400.0,0.00034794,6]
[385828672,1758057110276,-400.0,0.00034794,6]
[385828673,1758057110285,-400.0,0.00034794,6]
[385828674,1758057110295,-400.0,0.00034794,6]
[385828675,1758057110305,-209.09365788,0.00034794,6]
[385828676,1758057110315,-538.45,0.00034794,6]
[385828677,1758057110325,-897.93,0.00034794,6]
[385828678,1758057110334,-400.39,0.00034794,6]
[385828679,1758057110343,-477.46,0.00034794,6]
[385828680,1758057110354,-400.0,0.00034794,6]
[385828681,1758057110363,-420.75,0.00034794,6]
[385828682,1758057110373,-2152.72,0.00034794,6]
[385828683,1758057110382,-400.0,0.00034794,6]
[385828684,1758057110392,-446.8,0.00034794,6]
[385828685,1758057110402,-400.0,0.00034794,6]
[385828686,1758057110412,-400.0,0.00034794,6]
[385828687,1758057110422,-400.0,0.00034794,6]
[385828688,1758057110431,-400.0,0.00034794,6]
[385828689,1758057110441,-400.0,0.00034794,6]
[385828690,1758057110451,-414.26,0.00034794,6]
[385828691,1758057110460,-633.69,0.00034794,6]
[385828692,1758057110470,-400.0,0.00034794,6]
[385828693,1758057110479,-331.14297368,0.00034794,6]
[385828694,1758057110489,-488.35,0.00034794,6]
[385828695,1758057110498,-636.75,0.00034794,6]
[385828696,1758057110508,-605.63,0.00034794,6]
[385828697,1758057110518,-535.77,0.00034794,6]
[385828698,1758057110527,-609.74,0.00034794,6]
[385828699,1758057110537,-400.0,0.00034794,6]
[385828700,1758057110547,-290.36768233,0.00034794,6]
[385828701,1758057110557,-713.21,0.00034794,6]
[385828702,1758057110566,-400.0,0.00034794,6]
[385828703,1758057110575,-470.05,0.00034794,6]
[385828704,1758057110585,-545.98,0.00034794,6]
[385828705,1758057110594,-435.33,0.00034794,6]
[385828706,1758057110604,-400.0,0.00034794,6]
[385828707,1758057110613,-1275.84,0.00034794,6]
[385828708,1758057110623,-400.0,0.00034794,6]
[385828709,1758057110633,-1307.51,0.00034794,6]
[385828710,1758057110642,-400.0,0.00034794,6]
[385828711,1758057110652,-400.0,0.00034794,6]
[385828712,1758057110662,-585.24,0.00034794,6]
[385828713,1758057110673,-2094.1,0.00034794,6]
[385828714,1758057110686,-432.42,0.00034794,6]
[385828715,1758057110696,-426.07,0.00034794,6]
[385828716,1758057110706,-807.22,0.00034794,6]
[385828717,1758057110716,-450.81,0.00034794,6]
[385828718,1758057110727,-1320.54,0.00034794,6]
[385828719,1758057110737,-400.0,0.00034794,6]
[385828720,1758057110747,-2034.04,0.00034794,6]
[385828721,1758057110757,-632.25,0.00034794,6]
[385828722,1758057110766,-400.0,0.00034794,6]
[385828723,1758057110776,-691.17,0.00034794,6]
[385828724,1758057110786,-712.91,0.00034794,6]
[385828725,1758057110795,-198.23475964,0.00034794,6]
[385828726,1758057110805,-547.7583293,0.00034794,6]
[385828727,1758057110815,-400.0,0.00034794,6]
[385828728,1758057110824,-531.95,0.00034794,6]
[385828729,1758057110834,-400.0,0.00034794,6]
[385828730,1758057110844,-400.0,0.00034794,6]
[385828731,1758057110853,-400.0,0.00034794,6]
[385828732,1758057110863,-2182.91,0.00034794,6]
[385828733,1758057110873,-668.63,0.00034794,6]
[385828734,1758057110884,-682.52,0.00034794,6]
[385828735,1758057110895,-400.0,0.00034794,6]
[385828736,1758057110908,-577.47,0.00034794,6]
[385828737,1758057110918,-400.0,0.00034794,6]
[385828738,1758057110927,-400.0,0.00034794,6]
[385828739,1758057110938,-613.19,0.00034794,6]
[385828740,1758057110950,-409.76,0.00034794,6]
[385828741,1758057110959,-488.65799512,0.00034794,6]
[385828742,1758057110969,-1025.88,0.00034794,6]
[385828743,1758057110981,-1251.89,0.00034794,6]
[385828744,1758057110990,-256.10453166,0.00034794,6]
[385828745,1758057111001,-924.97,0.00034794,6]
[385828746,1758057111011,-605.66,0.00034794,6]
[385828747,1758057111021,-593.74,0.00034794,6]
[385828748,1758057111031,-516.31,0.00034794,6]
[385828749,1758057111041,-469.03614391,0.00034794,6]
[385828750,1758057111051,-400.0,0.00034794,6]
[385828751,1758057111061,-400.0,0.00034794,6]
[385828752,1758057111070,-400.0,0.00034794,6]
[385828753,1758057111079,-400.0,0.00034794,6]
[385828754,1758057111089,-1014.87,0.00034794,6]
[385828755,1758057111099,-524.6,0.00034794,6]
[385828756,1758057111108,-493.11,0.00034794,6]
[385828757,1758057111119,-412.98,0.00034794,6]
[385828758,1758057111128,-588.1,0.00034794,6]
[385828759,1758057111138,-400.0,0.00034794,6]
[385828760,1758057111149,-529.64,0.00034794,6]
[385828761,1758057111159,-400.0,0.00034794,6]
[385828762,1758057111169,-574.6,0.00034794,6]
[385828763,1758057111179,-400.0,0.00034794,6]
[385828764,1758057111189,-436.67,0.00034794,6]
[385828765,1758057111199,-983.68,0.00034794,6]
[385828766,1758057111208,-400.0,0.00034794,6]
[385828767,1758057111218,-249.68662107,0.00034794,6]
[385828768,1758057111227,-410.54,0.00034794,6]
[385828769,1758057111237,-409.35,0.00034794,6]
[385828770,1758057111247,-875.58,0.00034794,6]
[385828771,1758057111256,-1197.89,0.00034794,120]
[385828772,1758057111266,-457.79,0.00034794,6]
[385828773,1758057111275,-625.93,0.00034794,6]
[385828774,1758057111284,-400.0,0.00034794,6]
[385828775,1758057111294,-791.37,0.00034794,6]
[385828776,1758057111303,-609.54,0.00034794,6]
[385828777,1758057111314,-510.33,0.00034794,6]
[385828778,1758057111324,-745.45,0.00034794,6]
[385828779,1758057111334,-556.43,0.00034794,6]
[385828780,1758057111344,-400.0,0.00034794,6]
[385828781,1758057111355,-438.34,0.00034794,6]
[385828782,1758057111365,-636.26,0.00034794,6]
[385828783,1758057111374,-1260.15,0.00034794,6]
[385828784,1758057111384,-400.0,0.00034794,6]
[385828785,1758057111394,-587.63,0.00034794,6]
[385828786,1758057111403,-479.5,0.00034794,6]
[385828787,1758057111413,-461.54,0.00034794,6]
[385828788,1758057111423,-1289.38,0.00034794,6]
[385828789,1758057111433,-506.39,0.00034794,6]
[385828790,1758057111443,-462.29,0.00034794,6]
[385828791,1758057111452,-400.0,0.00034794,6]
[385828792,1758057111462,-400.0,0.00034794,6]
[385828793,1758057111471,-379.01438626,0.00034794,6]
[385828794,1758057111481,-400.0,0.00034794,6]
[385828795,1758057111491,-690.9,0.00034794,6]
[385828796,1758057111500,-449.23,0.00034794,5]
[385828797,1758057111511,-400.0,0.00034794,6]
[385828798,1758057111521,-220.00492933,0.00034794,6]
[385828799,1758057111531,-1146.39,0.00034794,6]
[385828800,1758057111540,-400.0,0.00034794,6]
[385828801,1758057111550,-400.0,0.00034794,6]
[385828802,1758057111559,-400.0,0.00034794,6]
[385828803,1758057111569,-843.08,0.00034794,6]
[385828804,1758057111579,-264.3518092,0.00034794,6]
[385828805,1758057111590,-497.6,0.00034794,6]
[385828806,1758057111599,-207.78670523,0.00034794,6]
[385828807,1758057111609,-400.0,0.00034794,6]
[385828808,1758057111618,-400.0,0.00034794,6]
[385828809,1758057111628,-400.0,0.00034794,6]
[385828810,1758057111640,-416.14196881,0.00034794,6]
[385828811,1758057111650,-2611.36,0.00034794,6]
[385828812,1758057111659,-400.0,0.00034794,6]
[385828813,1758057111669,-836.09,0.00034794,6]
[385828814,1758057111679,-467.85,0.00034794,6]
[385828815,1758057111689,-553.62,0.00034794,6]
[385828816,1758057111698,-400.0,0.00034794,6]
[385828817,1758057111708,-400.0,0.00034794,6]
[385828818,1758057111718,-400.0,0.00034794,6]
[385828819,1758057111727,-430.5,0.00034794,6]
[385828820,1758057111737,-1289.35,0.00034794,6]
[385828821,1758057111746,-400.0,0.00034794,6]
[385828822,1758057111755,-281.10784109,0.00034794,6]
[385828823,1758057111765,-441.74,0.00034794,6]
[385828824,1758057111774,-400.0,0.00034794,6]
[385828825,1758057111785,-479.52,0.00034794,6]
[385828826,1758057111795,-507.91,0.00034794,6]
[385828827,1758057111804,-400.0,0.00034794,6]
[385828828,1758057111813,-2216.47,0.00034794,6]
[385828829,1758057111823,-490.24786106,0.00034794,6]
[385828830,1758057111832,-547.58,0.00034794,6]
[385828831,1758057111843,-500.0,0.00034806,7]
[385828832,1758057111853,-153.9,0.00034822,30]
[385828833,1758057111863,-173.1,0.00034822,30]
[385828834,1758057111873,-5228.91108625,0.0003485,60]
[385828835,1758057111882,-154.91,0.00034862,60]
[385828836,1758057111893,-198.69043206,0.0003489,2]
[385828837,1758057111906,-600.0,0.000349,12]
[385828838,1758057111917,-7205.17345234,0.000349,2]
[385828839,1758057111926,-500.0,0.00034907,7]
[385828840,1758057111936,-5000.0,0.00034922,2]
[385828841,1758057111947,-5000.0,0.00034922,2]
[385828842,1758057111957,-9057.83353144,0.00034959,2]
[385828843,1758057111966,-773.8401566,0.00034959,2]
[385828844,1758057111976,-154.91,0.00034962,60]
[385828845,1758057111986,-700.0,0.0003497,2]
[385828846,1758057111996,-1000.0,0.00034999,10]
[385828847,1758057112007,-4000.0,0.00035,4]
[385828848,1758057112017,-2008.0,0.00035,2]
[385828849,1758057112027,-8436.79432947,0.00035,20]
[385828850,1758057112036,-899.9999995,0.00035,36]
[385828851,1758057112045,-150.0,0.00035,2]
[385828852,1758057112055,-488.84131441,0.00035,30]
[385828853,1758057112065,-215.0,0.00035,120]
[385828854,1758057112075,-616.98261685,0.00035,14]
[385828855,1758057112085,-4648069.1705779,0.00035,4]
[385828856,1758057112094,-272.35517901,0.00035,120]
[385828857,1758057112103,-2000.0,0.00035,2]
[385828858,1758057112113,-2000.0,0.00035,2]
[385828859,1758057112122,-2000.0,0.00035,2]
[385828860,1758057112132,-2000.0,0.00035,2]
[385828861,1758057112142,-2000.0,0.00035,2]
[385828862,1758057112151,-2000.0,0.00035,2]
[385828863,1758057112160,-2000.0,0.00035,2]
[385828864,1758057112170,-642.4327,0.00035,2]
[385828865,1758057112179,-2000.0,0.00035,2]
[385828866,1758057112188,-2000.0,0.00035,2]
[385828867,1758057112198,-789.12878409,0.00035,7]
[385828868,1758057112207,-45669.0,0.00035,30]
[385828869,1758057112216,-2323.27466933,0.00035,120]
[385828870,1758057112225,-230.0,0.00035,10]
[385828871,1758057112235,-2728.80702613,0.0003501,2]
[385828872,1758057112245,-1100.0,0.00035018,7]
[385828873,1758057112254,-600.0,0.00035026,7]
[385828874,1758057112264,-170.0,0.00035054,2]
[385828875,1758057112273,-150.0,0.00035054,2]
[385828876,1758057112283,-644.0,0.00035054,2]
[385828877,1758057112292,-154.91,0.00035062,60]
[385828878,1758057112302,-405.53,0.00035067,6]
[385828879,1758057112311,-400.0,0.00035067,6]
[385828880,1758057112320,-1028.77,0.00035067,6]
[385828881,1758057112330,-595.63,0.00035067,6]
[385828882,1758057112339,-1409.64,0.00035067,6]
[385828883,1758057112349,-400.0,0.00035067,6]
[385828884,1758057112358,-600.72,0.00035067,6]
[385828885,1758057112431,-400.0,0.00035067,6]
[385828886,1758057112441,-400.0,0.00035067,6]
[385828887,1758057112451,-1436.86,0.00035067,6]
[385828888,1758057112461,-506.37,0.00035067,6]
[385828889,1758057112470,-7636.7,0.00035067,6]
[385828890,1758057112479,-1729.73,0.00035067,6]
[385828891,1758057112489,-524.19,0.00035067,6]
[385828892,1758057112497,-844.72,0.00035067,6]
[385828893,1758057112507,-505.69,0.00035067,6]
[385828894,1758057112516,-400.0,0.00035067,6]
[385828895,1758057112525,-546.33,0.00035067,6]
[385828896,1758057112534,-400.0,0.00035067,6]
[385828897,1758057112543,-1051.06,0.00035067,6]
[385828898,1758057112552,-1470.36,0.00035067,6]
[385828899,1758057112562,-472.24,0.00035068,6]
[385828900,1758057112571,-318.0375621,0.00035068,120]
[385828901,1758057112581,-595.04,0.00035068,6]
[385828902,1758057112590,-817.46,0.00035068,6]
[385828903,1758057112599,-400.0,0.00035068,6]
[385828904,1758057112608,-426.72,0.00035068,6]
[385828905,1758057112618,-400.0,0.00035068,6]
[385828906,1758057112627,-400.0,0.00035068,6]
[385828907,1758057112636,-400.0,0.00035068,6]
[385828908,1758057112645,-400.0,0.00035068,6]
[385828909,1758057112655,-466.82,0.00035068,6]
[385828910,1758057112664,-436.46,0.00035068,6]
[385828911,1758057112673,-444.47,0.00035068,6]
[385828912,1758057112682,-371.89447365,0.00035068,6]
[385828913,1758057112693,-400.0,0.00035068,6]
[385828914,1758057112702,-459.00685527,0.00035068,6]
[385828915,1758057112711,-340.07676248,0.00035068,6]
[385828916,1758057112720,-538.45,0.00035068,6]
[385828917,1758057112729,-897.93,0.00035068,6]
[385828918,1758057112739,-400.39,0.00035068,6]
[385828919,1758057112748,-477.46,0.00035068,6]
[385828920,1758057112758,-400.0,0.00035068,6]
[385828921,1758057112767,-420.75,0.00035068,6]
[385828922,1758057112779,-2152.72,0.00035068,6]
[385828923,1758057112788,-400.0,0.00035068,6]
[385828924,1758057112798,-446.8,0.00035068,6]
[385828925,1758057112807,-434.85805882,0.00035068,6]
[385828926,1758057112817,-400.0,0.00035068,6]
[385828927,1758057112826,-371.2492253,0.00035068,6]
[385828928,1758057112835,-400.0,0.00035068,6]
[385828929,1758057112845,-400.0,0.00035068,6]
[385828930,1758057112854,-414.26,0.00035068,6]
[385828931,1758057112863,-633.69,0.00035068,6]
[385828932,1758057112873,-400.0,0.00035068,6]
[385828933,1758057112882,-488.35,0.00035068,6]
[385828934,1758057112892,-636.75,0.00035068,6]
[385828935,1758057112905,-605.63,0.00035068,6]
[385828936,1758057112915,-535.77,0.00035068,6]
[385828937,1758057112924,-609.74,0.00035068,6]
[385828938,1758057112934,-400.0,0.00035068,6]
[385828939,1758057112946,-713.21,0.00035068,6]
[385828940,1758057112956,-400.0,0.00035068,6]
[385828941,1758057112965,-470.05,0.00035068,6]
[385828942,1758057112975,-545.98,0.00035068,6]
[385828943,1758057112985,-435.33,0.00035068,6]
[385828944,1758057112995,-162.07254133,0.00035068,6]
[385828945,1758057113004,-179.92431243,0.00035068,6]
[385828946,1758057113014,-1275.84,0.00035068,6]
[385828947,1758057113024,-400.0,0.00035068,6]
[385828948,1758057113034,-1307.51,0.00035068,6]
[385828949,1758057113043,-450.13214305,0.00035068,6]
[385828950,1758057113053,-585.24,0.00035068,6]
[385828951,1758057113063,-2094.1,0.00035068,6]
[385828952,1758057113073,-432.42,0.00035068,6]
[385828953,1758057113082,-426.07,0.00035068,6]
[385828954,1758057113092,-807.22,0.00035068,6]
[385828955,1758057113102,-450.81,0.00035068,6]
[385828956,1758057113112,-1320.54,0.00035068,6]
[385828957,1758057113121,-400.0,0.00035068,6]
[385828958,1758057113130,-2034.04,0.00035068,6]
[385828959,1758057113139,-400.0,0.00035068,6]
[385828960,1758057113149,-632.25,0.00035068,6]
[385828961,1758057113159,-691.17,0.00035068,6]
[385828962,1758057113169,-712.91,0.00035068,6]
[385828963,1758057113178,-390.79441838,0.00035068,6]
[385828964,1758057113188,-531.95,0.00035068,6]
[385828965,1758057113198,-400.0,0.00035068,6]
[385828966,1758057113207,-400.0,0.00035068,6]
[385828967,1758057113216,-400.0,0.00035068,6]
[385828968,1758057113226,-2182.91,0.00035068,6]
[385828969,1758057113236,-668.63,0.00035068,6]
[385828970,1758057113245,-682.52,0.00035068,6]
[385828971,1758057113255,-291.15237188,0.00035068,6]
[385828972,1758057113265,-577.47,0.00035068,6]
[385828973,1758057113274,-460.17241992,0.00035068,6]
[385828974,1758057113283,-400.0,0.00035068,6]
[385828975,1758057113292,-613.19,0.00035068,6]
[385828976,1758057113302,-409.76,0.00035068,6]
[385828977,1758057113311,-1025.88,0.00035068,6]
[385828978,1758057113320,-1251.89,0.00035068,6]
[385828979,1758057113330,-924.97,0.00035068,6]
[385828980,1758057113339,-605.66,0.00035068,6]
[385828981,1758057113348,-593.74,0.00035068,6]
[385828982,1758057113358,-516.31,0.00035068,6]
[385828983,1758057113367,-400.0,0.00035068,6]
[385828984,1758057113377,-400.0,0.00035068,6]
[385828985,1758057113386,-400.0,0.00035068,6]
[385828986,1758057113395,-400.0,0.00035068,6]
[385828987,1758057113405,-1014.87,0.00035068,6]
[385828988,1758057113414,-524.6,0.00035068,6]
[385828989,1758057113423,-493.11,0.00035068,6]
[385828990,1758057113433,-412.98,0.00035068,6]
[385828991,1758057113442,-588.1,0.00035068,6]
[385828992,1758057113451,-357.79048289,0.00035068,6]
[385828993,1758057113461,-529.64,0.00035068,6]
[385828994,1758057113470,-400.0,0.00035068,6]
[385828995,1758057113479,-574.6,0.00035068,6]
[385828996,1758057113489,-533.21334497,0.00035068,6]
[385828997,1758057113498,-983.68,0.00035068,6]
[385828998,1758057113507,-436.67,0.00035068,6]
[385828999,1758057113516,-190.92145258,0.00035068,6]
[385829000,1758057113526,-410.54,0.00035068,6]
[385829001,1758057113535,-409.35,0.00035068,6]
[385829002,1758057113545,-875.58,0.00035068,6]
[385829003,1758057113554,-457.79,0.00035068,6]
[385829004,1758057113563,-625.93,0.00035068,6]
[385829005,1758057113572,-400.0,0.00035068,6]
[385829006,1758057113581,-791.37,0.00035068,6]
[385829007,1758057113590,-609.54,0.00035068,6]
[385829008,1758057113599,-745.45,0.00035068,6]
[385829009,1758057113608,-510.33,0.00035068,6]
[385829010,1758057113618,-556.43,0.00035068,6]
[385829011,1758057113627,-400.0,0.00035068,6]
[385829012,1758057113637,-438.34,0.00035068,6]
[385829013,1758057113646,-636.26,0.00035068,6]
[385829014,1758057113655,-1260.15,0.00035068,6]
[385829015,1758057113664,-400.0,0.00035068,6]
[385829016,1758057113674,-587.63,0.00035068,6]
[385829017,1758057113683,-479.5,0.00035068,6]
[385829018,1758057113692,-461.54,0.00035068,6]
[385829019,1758057113702,-506.39,0.00035068,6]
[385829020,1758057113711,-462.29,0.00035068,6]
[385829021,1758057113720,-1289.38,0.00035068,6]
[385829022,1758057113730,-400.0,0.00035068,6]
[385829023,1758057113739,-400.0,0.00035068,6]
[385829024,1758057113747,-400.0,0.00035068,6]
[385829025,1758057113757,-690.9,0.00035068,6]
[385829026,1758057113766,-449.23,0.00035068,5]
[385829027,1758057113775,-400.0,0.00035068,6]
[385829028,1758057113784,-1146.39,0.00035068,6]
[385829029,1758057113793,-400.0,0.00035068,6]
[385829030,1758057113802,-400.0,0.00035068,6]
[385829031,1758057113811,-400.0,0.00035068,6]
[385829032,1758057113821,-843.08,0.00035068,6]
[385829033,1758057113830,-497.6,0.00035068,6]
[385829034,1758057113839,-400.0,0.00035068,6]
[385829035,1758057113849,-400.0,0.00035068,6]
[385829036,1758057113859,-502.9662429,0.00035068,6]
[385829037,1758057113868,-2611.36,0.00035068,6]
[385829038,1758057113877,-400.0,0.00035068,6]
[385829039,1758057113886,-836.09,0.00035068,6]
[385829040,1758057113896,-400.0,0.00035068,6]
[385829041,1758057113909,-467.85,0.00035068,6]
[385829042,1758057113918,-553.62,0.00035068,6]
[385829043,1758057113927,-400.0,0.00035068,6]
[385829044,1758057113937,-400.0,0.00035068,6]
[385829045,1758057113947,-1289.35,0.00035068,6]
[385829046,1758057113957,-405.06624267,0.00035068,6]
[385829047,1758057113967,-430.5,0.00035068,6]
[385829048,1758057113977,-441.74,0.00035068,6]
[385829049,1758057113986,-239.77838173,0.00035068,6]
[385829050,1758057113995,-479.52,0.00035068,6]
[385829051,1758057114004,-507.91,0.00035068,6]
[385829052,1758057114014,-188.76708903,0.00035068,6]
[385829053,1758057114024,-2216.47,0.00035068,6]
[385829054,1758057114033,-547.58,0.00035068,6]
[385829055,1758057114043,-804.41,0.00035068,2]
[385829056,1758057114052,-804.41,0.00035068,2]
[385829057,1758057114061,-500.0,0.00035072,7]
[385829058,1758057114070,-3248.70686192,0.00035086,2]
[385829059,1758057114079,-500.0,0.00035088,120]
[385829060,1758057114088,-150.0,0.00035095,120]
[385829061,1758057114098,-411.1,0.00035096,2]
[385829062,1758057114107,-150.0,0.00035096,2]
[385829063,1758057114116,-411.1,0.00035096,2]
[385829064,1758057114125,-150.0,0.00035096,2]
[385829065,1758057114134,-411.1,0.00035096,2]
[385829066,1758057114143,-150.0,0.00035096,2]
[385829067,1758057114152,-411.1,0.00035096,2]
[385829068,1758057114161,-411.1,0.00035096,2]
[385829069,1758057114170,-411.1,0.00035096,2]
[385829070,1758057114178,-411.1,0.00035096,2]
[385829071,1758057114188,-562.44,0.00035096,2]
[385829072,1758057114197,-409.1,0.00035096,2]
[385829073,1758057114206,-303.44,0.00035096,2]
[385829074,1758057114216,-154.42,0.00035096,2]
[385829075,1758057114225,-489.22422608,0.00035106,2]
[385829076,1758057114235,-500.0,0.00035107,7]
[385829077,1758057114243,-200039.87320785,0.00035109,30]
[385829078,1758057114255,-700.0,0.00035133,7]
[385829079,1758057114264,-780.46257145,0.00035137,15]
[385829080,1758057114274,-5007.08603,0.00035137,30]
[385829081,1758057114283,-276.75513,0.0003515,2]
[385829082,1758057114292,-154.91,0.00035162,60]
[385829083,1758057114301,-500.0,0.00035187,7]
[385829084,1758057114311,-500.0,0.00035225,7]
[385829085,1758057114320,-1300.0,0.00035234,7]
[385829086,1758057114329,-154.91,0.00035262,60]
[385829087,1758057114338,-150.0,0.00035268,120]
[385829088,1758057114346,-1300.0,0.0003529,7]
[385829089,1758057114356,-500.0,0.00035314,7]
[385829090,1758057114365,-500.0,0.00035327,7]
[385829091,1758057114374,-5650.52581728,0.00035328,2]
[385829092,1758057114383,-5000.0,0.00035328,2]
[385829093,1758057114391,-5000.0,0.00035328,2]
[385829094,1758057114400,-5000.0,0.00035328,2]
[385829095,1758057114409,-644.0,0.00035328,2]
[385829096,1758057114418,-392.94820096,0.00035341,6]
[385829097,1758057114428,-405.53,0.00035341,6]
[385829098,1758057114439,-400.0,0.00035341,6]
[385829099,1758057114448,-595.63,0.00035341,6]
[385829100,1758057114460,-1028.77,0.00035341,6]
[385829101,1758057114470,-1409.64,0.00035341,6]
[385829102,1758057114480,-400.0,0.00035341,6]
[385829103,1758057114491,-600.72,0.00035341,6]
[385829104,1758057114502,-400.0,0.00035341,6]
[385829105,1758057114511,-400.0,0.00035341,6]
[385829106,1758057114520,-1436.86,0.00035341,6]
[385829107,1758057114529,-506.37,0.00035341,6]